[Event "Titled Tuesday Blitz January 03 Early 2023"]
[White "Diaz Villagran, Robert"]
[Black "Fisher_TheGalactic"]
[WhiteFideId "3404056"]
[WhiteElo "2315"]
[BlackElo "2521"]
[Result "0-1"]
[Round "10"]
[TimeControl "180+2"]
[Date "2023.01.03"]
[WhiteClock "0:00:18"]
[BlackClock "0:00:10"]

1. e4 {[%clk 0:03:00]}  b6 {[%clk 0:02:58]} 2. d4 {[%clk 0:03:00]}  Bb7 {[%clk 0:02:58]} 3. Bd3 {[%clk 0:03:01]}  Nf6 {[%clk 0:02:57]} 4. Qe2 {[%clk 0:03:00]}  e6 {[%clk 0:02:57]} 5. Nf3 {[%clk 0:02:59]}  d5 {[%clk 0:02:57]} 6. e5 {[%clk 0:02:59]}  Nfd7 {[%clk 0:02:57]} 7. O-O {[%clk 0:02:56]}  c5 {[%clk 0:02:57]} 8. c3 {[%clk 0:02:57]}  Nc6 {[%clk 0:02:57]} 9. a3 {[%clk 0:02:57]}  Be7 {[%clk 0:02:57]} 10. b4 {[%clk 0:02:48]}  c4 {[%clk 0:02:56]} 11. Bc2 {[%clk 0:02:47]}  Qc7 {[%clk 0:02:56]} 12. h4 {[%clk 0:02:46]}  h6 {[%clk 0:02:50]} 13. h5 {[%clk 0:02:44]}  O-O-O {[%clk 0:02:50]} 14. a4 {[%clk 0:02:41]}  Kb8 {[%clk 0:02:49]} 15. a5 {[%clk 0:02:37]}  b5 {[%clk 0:02:49]} 16. a6 {[%clk 0:02:34]}  Bc8 {[%clk 0:02:47]} 17. Bf4 {[%clk 0:02:33]}  Ka8 {[%clk 0:02:44]} 18. Nbd2 {[%clk 0:02:32]}  Qb6 {[%clk 0:02:44]} 19. Nh2 {[%clk 0:02:22]}  Bxa6 {[%clk 0:02:43]} 20. Be3 {[%clk 0:02:23]}  f5 {[%clk 0:02:26]} 21. exf6 {[%clk 0:02:13]}  Nxf6 {[%clk 0:02:22]} 22. Bf4 {[%clk 0:02:01]}  Bc8 {[%clk 0:02:19]} 23. Bg6 {[%clk 0:01:58]}  Rhf8 {[%clk 0:02:17]} 24. g3 {[%clk 0:01:53]}  Bd6 {[%clk 0:02:07]} 25. Bxd6 {[%clk 0:01:51]}  Rxd6 {[%clk 0:02:08]} 26. Nhf3 {[%clk 0:01:51]}  Rdd8 {[%clk 0:02:05]} 27. Ra2 {[%clk 0:01:46]}  Ng8 {[%clk 0:01:56]} 28. Rfa1 {[%clk 0:01:45]}  Nge7 {[%clk 0:01:55]} 29. Ne5 {[%clk 0:01:46]}  a6 {[%clk 0:01:40]} 30. Ndf3 {[%clk 0:01:39]}  Nxe5 {[%clk 0:01:35]} 31. Nxe5 {[%clk 0:01:35]}  Rf6 {[%clk 0:01:31]} 32. f4 {[%clk 0:01:30]}  Nc6 {[%clk 0:01:25]} 33. Ng4 {[%clk 0:01:21]}  Rff8 {[%clk 0:01:23]} 34. Kh2 {[%clk 0:01:22]}  Ne7 {[%clk 0:01:17]} 35. Ne5 {[%clk 0:01:16]}  Rf6 {[%clk 0:01:10]} 36. Ng4 {[%clk 0:01:12]}  Rff8 {[%clk 0:01:06]} 37. Qe5 {[%clk 0:01:12]}  Nxg6 {[%clk 0:00:55]} 38. hxg6 {[%clk 0:01:12]}  h5 {[%clk 0:00:55]} 39. Nf2 {[%clk 0:00:35]}  Rf6 {[%clk 0:00:26]} 40. Qxh5 {[%clk 0:00:35]}  e5 {[%clk 0:00:20]} 41. dxe5 {[%clk 0:00:31]}  Rxg6 {[%clk 0:00:20]} 42. Qh4 {[%clk 0:00:23]}  Rh6 {[%clk 0:00:20]} 43. Qxh6 {[%clk 0:00:19]}  Qxh6+ {[%clk 0:00:21]} 44. Kg2 {[%clk 0:00:19]}  d4 {[%clk 0:00:19]} 45. cxd4 {[%clk 0:00:16]}  Bb7+ {[%clk 0:00:19]} 46. Kg1 {[%clk 0:00:17]}  Rxd4 {[%clk 0:00:19]} 47. Re2 {[%clk 0:00:17]}  Qg6 {[%clk 0:00:18]} 48. Re3 {[%clk 0:00:17]}  Rd2 {[%clk 0:00:17]} 49. Rae1 {[%clk 0:00:17]}  Bd5 {[%clk 0:00:11]} 50. e6 {[%clk 0:00:17]}  Bxe6 {[%clk 0:00:11]} 51. Rxe6 {[%clk 0:00:18]}  Qxg3+ {[%clk 0:00:11]} 52. Kh1 {[%clk 0:00:18]}  Qh4+ {[%clk 0:00:10]} 53. Kg1 {[%clk 0:00:18]}  Qxf2+ {[%clk 0:00:09]} 54. Kh1 {[%clk 0:00:18]}  Qg2# {[%clk 0:00:10]} 0-1


[Site "https://www.chess.com"]

[Event "Titled Tuesday Blitz January 03 Early 2023"]
[White "Freitag, Manfred"]
[Black "Zhuravlev, Alexey"]
[WhiteFideId "1602004"]
[BlackFideId "4164199"]
[WhiteElo "2352"]
[BlackElo "2359"]
[Result "1-0"]
[Round "10"]
[TimeControl "180+2"]
[Date "2023.01.03"]
[WhiteClock "0:00:36"]
[BlackClock "0:00:01"]

1. d4 {[%clk 0:03:00]}  Nf6 {[%clk 0:02:59]} 2. c4 {[%clk 0:03:00]}  g6 {[%clk 0:03:00]} 3. Nc3 {[%clk 0:03:00]}  Bg7 {[%clk 0:03:00]} 4. e4 {[%clk 0:03:00]}  d6 {[%clk 0:03:00]} 5. Nf3 {[%clk 0:03:00]}  O-O {[%clk 0:03:01]} 6. Be2 {[%clk 0:03:01]}  e5 {[%clk 0:03:00]} 7. O-O {[%clk 0:03:01]}  Nc6 {[%clk 0:03:00]} 8. d5 {[%clk 0:03:02]}  Ne7 {[%clk 0:03:01]} 9. Ne1 {[%clk 0:03:02]}  Nd7 {[%clk 0:03:01]} 10. Nd3 {[%clk 0:03:03]}  f5 {[%clk 0:02:40]} 11. f3 {[%clk 0:03:04]}  f4 {[%clk 0:02:29]} 12. b4 {[%clk 0:03:03]}  Nf6 {[%clk 0:02:28]} 13. c5 {[%clk 0:03:03]}  g5 {[%clk 0:02:23]} 14. a4 {[%clk 0:03:03]}  h5 {[%clk 0:02:16]} 15. Nf2 {[%clk 0:03:03]}  Ng6 {[%clk 0:02:07]} 16. a5 {[%clk 0:03:02]}  Rf7 {[%clk 0:02:07]} 17. Kh1 {[%clk 0:03:02]}  Bf8 {[%clk 0:02:06]} 18. c6 {[%clk 0:03:02]}  Rg7 {[%clk 0:01:56]} 19. Rg1 {[%clk 0:03:01]}  Nh8 {[%clk 0:01:55]} 20. cxb7 {[%clk 0:02:58]}  Bxb7 {[%clk 0:01:54]} 21. a6 {[%clk 0:02:53]}  Bc8 {[%clk 0:01:54]} 22. g3 {[%clk 0:02:54]}  fxg3 {[%clk 0:01:45]} 23. Rxg3 {[%clk 0:02:50]}  Nf7 {[%clk 0:01:45]} 24. Be3 {[%clk 0:02:49]}  h4 {[%clk 0:01:43]} 25. Rg1 {[%clk 0:02:48]}  Nh5 {[%clk 0:01:44]} 26. Nb5 {[%clk 0:02:39]}  Nf4 {[%clk 0:01:41]} 27. Nxa7 {[%clk 0:02:35]}  Bd7 {[%clk 0:01:40]} 28. Nc6 {[%clk 0:02:33]}  Qf6 {[%clk 0:01:38]} 29. a7 {[%clk 0:02:28]}  Nxe2 {[%clk 0:01:25]} 30. Qxe2 {[%clk 0:02:28]}  Nh6 {[%clk 0:01:25]} 31. Ng4 {[%clk 0:02:22]}  Nxg4 {[%clk 0:01:09]} 32. fxg4 {[%clk 0:02:22]}  Rf7 {[%clk 0:01:00]} 33. Rgf1 {[%clk 0:02:18]}  Qg6 {[%clk 0:01:00]} 34. Bd2 {[%clk 0:02:06]}  h3 {[%clk 0:00:55]} 35. Rxf7 {[%clk 0:02:01]}  Qxf7 {[%clk 0:00:56]} 36. Rf1 {[%clk 0:01:58]}  Qg6 {[%clk 0:00:53]} 37. Rf5 {[%clk 0:01:52]}  Bxf5 {[%clk 0:00:44]} 38. gxf5 {[%clk 0:01:52]}  Qh6 {[%clk 0:00:41]} 39. Qg4 {[%clk 0:01:52]}  Qh4 {[%clk 0:00:30]} 40. Qxg5+ {[%clk 0:01:51]}  Qxg5 {[%clk 0:00:30]} 41. Bxg5 {[%clk 0:01:52]}  Kh7 {[%clk 0:00:26]} 42. Bd8 {[%clk 0:01:37]}  Bh6 {[%clk 0:00:23]} 43. Bxc7 {[%clk 0:01:37]}  Be3 {[%clk 0:00:24]} 44. Bb8 {[%clk 0:01:31]}  Kh6 {[%clk 0:00:23]} 45. b5 {[%clk 0:01:31]}  Kg5 {[%clk 0:00:23]} 46. f6 {[%clk 0:00:47]}  Kxf6 {[%clk 0:00:23]} 47. Bxd6 {[%clk 0:00:48]}  Bxa7 {[%clk 0:00:21]} 48. Bxe5+ {[%clk 0:00:47]}  Kg6 {[%clk 0:00:21]} 49. Nxa7 {[%clk 0:00:47]}  Rxa7 {[%clk 0:00:21]} 50. Kg1 {[%clk 0:00:48]}  Rb7 {[%clk 0:00:19]} 51. Kf2 {[%clk 0:00:45]}  Rxb5 {[%clk 0:00:19]} 52. Ke3 {[%clk 0:00:45]}  Kg5 {[%clk 0:00:14]} 53. Bg3 {[%clk 0:00:42]}  Kg4 {[%clk 0:00:10]} 54. d6 {[%clk 0:00:41]}  Rb7 {[%clk 0:00:06]} 55. Kd4 {[%clk 0:00:40]}  Kf3 {[%clk 0:00:04]} 56. e5 {[%clk 0:00:39]}  Rb4+ {[%clk 0:00:01]} 57. Kd5 {[%clk 0:00:39]}  Kg4 {[%clk 0:00:01]} 58. d7 {[%clk 0:00:38]}  Rb1 {[%clk 0:00:01]} 59. e6 {[%clk 0:00:37]}  Kf5 {[%clk 0:00:01]} 60. e7 {[%clk 0:00:36]}  Rd1+ {[%clk 0:00:01]} 61. Kc6 {[%clk 0:00:36]} 1-0


[Site "https://www.chess.com"]

[Event "Titled Tuesday Blitz January 03 Early 2023"]
[White "Yaran, Siar"]
[Black "Sadovsky, Artem"]
[WhiteFideId "6323006"]
[BlackFideId "4155840"]
[WhiteElo "2288"]
[BlackElo "2276"]
[Result "1-0"]
[Round "10"]
[TimeControl "180+2"]
[Date "2023.01.03"]
[WhiteClock "0:00:08"]
[BlackClock "0:00:02"]

1. d4 {[%clk 0:02:56]}  g6 {[%clk 0:02:59]} 2. c4 {[%clk 0:02:56]}  Bg7 {[%clk 0:02:58]} 3. Nc3 {[%clk 0:02:57]}  d6 {[%clk 0:02:58]} 4. e4 {[%clk 0:02:56]}  e5 {[%clk 0:02:57]} 5. dxe5 {[%clk 0:02:54]}  dxe5 {[%clk 0:02:56]} 6. Qxd8+ {[%clk 0:02:53]}  Kxd8 {[%clk 0:02:56]} 7. Be3 {[%clk 0:02:51]}  Be6 {[%clk 0:02:55]} 8. Nf3 {[%clk 0:02:46]}  f6 {[%clk 0:02:55]} 9. O-O-O+ {[%clk 0:02:43]}  Nd7 {[%clk 0:02:54]} 10. h4 {[%clk 0:02:35]}  Bh6 {[%clk 0:02:54]} 11. Nd5 {[%clk 0:02:02]}  Bxe3+ {[%clk 0:02:45]} 12. Nxe3 {[%clk 0:02:03]}  c6 {[%clk 0:02:40]} 13. h5 {[%clk 0:01:58]}  g5 {[%clk 0:02:40]} 14. g3 {[%clk 0:01:50]}  Nh6 {[%clk 0:02:39]} 15. Nh2 {[%clk 0:01:45]}  Ke7 {[%clk 0:02:36]} 16. Be2 {[%clk 0:01:43]}  Nc5 {[%clk 0:02:33]} 17. Nhg4 {[%clk 0:01:28]}  Nxg4 {[%clk 0:02:23]} 18. Bxg4 {[%clk 0:01:25]}  Nxe4 {[%clk 0:01:34]} 19. Nf5+ {[%clk 0:00:43]}  Bxf5 {[%clk 0:01:33]} 20. Bxf5 {[%clk 0:00:44]}  Nd6 {[%clk 0:01:34]} 21. Bd3 {[%clk 0:00:32]}  c5 {[%clk 0:01:25]} 22. f4 {[%clk 0:00:29]}  e4 {[%clk 0:01:19]} 23. Rhe1 {[%clk 0:00:20]}  f5 {[%clk 0:01:13]} 24. fxg5 {[%clk 0:00:20]}  Kd7 {[%clk 0:00:43]} 25. Bf1 {[%clk 0:00:20]}  Kc7 {[%clk 0:00:39]} 26. Rd5 {[%clk 0:00:19]}  b6 {[%clk 0:00:38]} 27. Red1 {[%clk 0:00:19]}  Rad8 {[%clk 0:00:38]} 28. b3 {[%clk 0:00:18]}  Rhg8 {[%clk 0:00:36]} 29. g4 {[%clk 0:00:18]}  Rxg5 {[%clk 0:00:33]} 30. gxf5 {[%clk 0:00:16]}  Rxf5 {[%clk 0:00:34]} 31. Bh3 {[%clk 0:00:15]}  Rxd5 {[%clk 0:00:33]} 32. Rxd5 {[%clk 0:00:16]}  Re8 {[%clk 0:00:26]} 33. Kd2 {[%clk 0:00:16]}  Re7 {[%clk 0:00:22]} 34. Ke3 {[%clk 0:00:16]}  Kc6 {[%clk 0:00:22]} 35. Rg5 {[%clk 0:00:15]}  a5 {[%clk 0:00:18]} 36. a4 {[%clk 0:00:13]}  Kc7 {[%clk 0:00:17]} 37. h6 {[%clk 0:00:11]}  Ne8 {[%clk 0:00:10]} 38. Rg8 {[%clk 0:00:10]}  Nf6 {[%clk 0:00:10]} 39. Rc8+ {[%clk 0:00:09]}  Kd6 {[%clk 0:00:09]} 40. Rb8 {[%clk 0:00:09]}  Ke5 {[%clk 0:00:06]} 41. Rxb6 {[%clk 0:00:09]}  Re8 {[%clk 0:00:06]} 42. Rc6 {[%clk 0:00:08]}  Rb8 {[%clk 0:00:01]} 43. Rxc5+ {[%clk 0:00:08]}  Kd6 {[%clk 0:00:02]} 44. Rb5 {[%clk 0:00:08]}  Rb6 {[%clk 0:00:02]} 45. Rxb6+ {[%clk 0:00:08]} 1-0


[Site "https://www.chess.com"]

[Event "Titled Tuesday Blitz January 03 Early 2023"]
[White "Jovic, Stanoje"]
[Black "Saravana, Krishnan P."]
[WhiteFideId "905020"]
[BlackFideId "5018382"]
[WhiteElo "2075"]
[BlackElo "2284"]
[Result "1/2-1/2"]
[Round "10"]
[TimeControl "180+2"]
[Date "2023.01.03"]
[WhiteClock "0:01:55"]
[BlackClock "0:00:19"]

1. c4 {[%clk 0:03:00]}  Nf6 {[%clk 0:02:06]} 2. g3 {[%clk 0:03:00]}  c5 {[%clk 0:02:06]} 3. Bg2 {[%clk 0:03:00]}  Nc6 {[%clk 0:02:07]} 4. Nc3 {[%clk 0:02:59]}  e6 {[%clk 0:02:05]} 5. Nf3 {[%clk 0:02:59]}  d5 {[%clk 0:02:05]} 6. cxd5 {[%clk 0:02:59]}  exd5 {[%clk 0:02:06]} 7. d4 {[%clk 0:02:59]}  h6 {[%clk 0:02:02]} 8. O-O {[%clk 0:02:57]}  Be6 {[%clk 0:02:00]} 9. dxc5 {[%clk 0:02:55]}  Bxc5 {[%clk 0:01:59]} 10. a3 {[%clk 0:02:56]}  O-O {[%clk 0:01:59]} 11. b4 {[%clk 0:02:56]}  Bb6 {[%clk 0:01:58]} 12. Bb2 {[%clk 0:02:55]}  Rc8 {[%clk 0:01:54]} 13. Rc1 {[%clk 0:02:55]}  Ne4 {[%clk 0:01:44]} 14. Na4 {[%clk 0:02:53]}  Bc7 {[%clk 0:01:30]} 15. Nd4 {[%clk 0:02:50]}  Qd7 {[%clk 0:00:50]} 16. Bxe4 {[%clk 0:02:29]}  dxe4 {[%clk 0:00:48]} 17. Nc5 {[%clk 0:02:27]}  Qe7 {[%clk 0:00:45]} 18. Ncxe6 {[%clk 0:02:25]}  fxe6 {[%clk 0:00:44]} 19. Nxc6 {[%clk 0:02:24]}  bxc6 {[%clk 0:00:43]} 20. Rxc6 {[%clk 0:02:24]}  Bxg3 {[%clk 0:00:36]} 21. Rxc8 {[%clk 0:01:55]}  Bxh2+ {[%clk 0:00:36]} 22. Kxh2 {[%clk 0:01:55]}  Qh4+ {[%clk 0:00:35]} 23. Kg2 {[%clk 0:01:55]}  Qg4+ {[%clk 0:00:35]} 24. Kh2 {[%clk 0:01:55]}  Qh4+ {[%clk 0:00:19]} 25. Kg2 {[%clk 0:01:55]}  Qg4+ {[%clk 0:00:19]} 26. Kh2 {[%clk 0:01:55]}  Qh4+ {[%clk 0:00:19]} 1/2-1/2


[Site "https://www.chess.com"]

[Event "Titled Tuesday Blitz January 03 Early 2023"]
[White "Iskusnyh, Sergei"]
[Black "Ansh M Shah"]
[WhiteFideId "4120027"]
[BlackFideId "25033379"]
[WhiteElo "2440"]
[BlackElo "2171"]
[Result "1-0"]
[Round "10"]
[TimeControl "180+2"]
[Date "2023.01.03"]
[WhiteClock "0:00:14"]
[BlackClock "0:00:13"]

1. d4 {[%clk 0:03:00]}  Nf6 {[%clk 0:02:59]} 2. c4 {[%clk 0:03:01]}  e6 {[%clk 0:03:00]} 3. g3 {[%clk 0:03:00]}  d5 {[%clk 0:03:01]} 4. Bg2 {[%clk 0:03:00]}  Be7 {[%clk 0:02:57]} 5. Nf3 {[%clk 0:03:00]}  O-O {[%clk 0:02:58]} 6. Qc2 {[%clk 0:02:59]}  dxc4 {[%clk 0:02:59]} 7. Qxc4 {[%clk 0:02:59]}  a6 {[%clk 0:03:00]} 8. Qc2 {[%clk 0:02:55]}  Nbd7 {[%clk 0:03:00]} 9. O-O {[%clk 0:02:51]}  Rb8 {[%clk 0:03:00]} 10. Bf4 {[%clk 0:02:33]}  Bd6 {[%clk 0:02:52]} 11. Nbd2 {[%clk 0:02:26]}  b5 {[%clk 0:02:48]} 12. Nb3 {[%clk 0:02:25]}  Bb7 {[%clk 0:02:47]} 13. Na5 {[%clk 0:02:21]}  Be4 {[%clk 0:02:46]} 14. Qd2 {[%clk 0:02:09]}  Bxf4 {[%clk 0:02:46]} 15. gxf4 {[%clk 0:02:04]}  c5 {[%clk 0:02:41]} 16. dxc5 {[%clk 0:01:56]}  Nxc5 {[%clk 0:02:39]} 17. Qxd8 {[%clk 0:01:56]}  Rfxd8 {[%clk 0:02:40]} 18. Rac1 {[%clk 0:01:53]}  Rbc8 {[%clk 0:02:30]} 19. Ne5 {[%clk 0:01:51]}  Bxg2 {[%clk 0:02:30]} 20. Kxg2 {[%clk 0:01:52]}  Nd5 {[%clk 0:01:58]} 21. Nec6 {[%clk 0:01:38]}  Na4 {[%clk 0:01:12]} 22. Nxd8 {[%clk 0:01:34]}  Rxd8 {[%clk 0:01:12]} 23. b3 {[%clk 0:01:15]}  Nac3 {[%clk 0:01:11]} 24. e3 {[%clk 0:01:10]}  Nxa2 {[%clk 0:01:10]} 25. Rc5 {[%clk 0:00:48]}  Nab4 {[%clk 0:01:00]} 26. Rfc1 {[%clk 0:00:47]}  Nb6 {[%clk 0:00:43]} 27. Nc6 {[%clk 0:00:44]}  Nxc6 {[%clk 0:00:42]} 28. Rxc6 {[%clk 0:00:45]}  Nd5 {[%clk 0:00:37]} 29. Rxa6 {[%clk 0:00:45]}  g6 {[%clk 0:00:33]} 30. Ra7 {[%clk 0:00:44]}  Kg7 {[%clk 0:00:26]} 31. Rc6 {[%clk 0:00:44]}  Kf6 {[%clk 0:00:19]} 32. Rb7 {[%clk 0:00:43]}  b4 {[%clk 0:00:18]} 33. Kf3 {[%clk 0:00:38]}  h6 {[%clk 0:00:16]} 34. e4 {[%clk 0:00:37]}  Nc3 {[%clk 0:00:15]} 35. e5+ {[%clk 0:00:37]}  Kg7 {[%clk 0:00:15]} 36. Rxe6 {[%clk 0:00:36]}  Rd3+ {[%clk 0:00:15]} 37. Kg2 {[%clk 0:00:35]}  Nd5 {[%clk 0:00:16]} 38. Rd6 {[%clk 0:00:28]}  Nxf4+ {[%clk 0:00:16]} 39. Kf1 {[%clk 0:00:28]}  Rxb3 {[%clk 0:00:16]} 40. Ke1 {[%clk 0:00:21]}  Rb1+ {[%clk 0:00:16]} 41. Kd2 {[%clk 0:00:21]}  Rb2+ {[%clk 0:00:16]} 42. Ke3 {[%clk 0:00:19]}  Ng2+ {[%clk 0:00:15]} 43. Kf3 {[%clk 0:00:18]}  Nh4+ {[%clk 0:00:16]} 44. Ke4 {[%clk 0:00:17]}  Rxf2 {[%clk 0:00:15]} 45. e6 {[%clk 0:00:16]}  Re2+ {[%clk 0:00:14]} 46. Kd3 {[%clk 0:00:16]}  Re5 {[%clk 0:00:13]} 47. Rxf7+ {[%clk 0:00:14]}  Kg8 {[%clk 0:00:13]} 48. Rd8# {[%clk 0:00:14]} 1-0


[Site "https://www.chess.com"]

[Event "Titled Tuesday Blitz January 03 Early 2023"]
[White "Fiorito, Francisco"]
[Black "Batsiashvili, Nino"]
[WhiteFideId "180165"]
[BlackFideId "13602993"]
[WhiteElo "2305"]
[BlackElo "2467"]
[Result "1-0"]
[Round "10"]
[TimeControl "180+2"]
[Date "2023.01.03"]
[WhiteClock "0:00:22"]
[BlackClock "0:01:01"]

1. e4 {[%clk 0:02:59]}  e5 {[%clk 0:02:59]} 2. Nf3 {[%clk 0:02:58]}  Nc6 {[%clk 0:02:59]} 3. Bb5 {[%clk 0:02:58]}  Nge7 {[%clk 0:03:00]} 4. O-O {[%clk 0:02:58]}  Ng6 {[%clk 0:03:00]} 5. d4 {[%clk 0:02:26]}  Nxd4 {[%clk 0:02:59]} 6. Nxd4 {[%clk 0:02:25]}  exd4 {[%clk 0:03:00]} 7. Qxd4 {[%clk 0:02:25]}  c6 {[%clk 0:03:00]} 8. Bc4 {[%clk 0:02:24]}  Qb6 {[%clk 0:03:00]} 9. Qd1 {[%clk 0:02:15]}  Bc5 {[%clk 0:02:49]} 10. Nc3 {[%clk 0:02:12]}  O-O {[%clk 0:02:49]} 11. Na4 {[%clk 0:02:09]}  Qb4 {[%clk 0:02:49]} 12. b3 {[%clk 0:02:05]}  Be7 {[%clk 0:02:36]} 13. a3 {[%clk 0:01:51]}  Qd6 {[%clk 0:02:30]} 14. Qxd6 {[%clk 0:01:48]}  Bxd6 {[%clk 0:02:31]} 15. Nc3 {[%clk 0:01:48]}  b5 {[%clk 0:02:27]} 16. Bd3 {[%clk 0:01:46]}  Be5 {[%clk 0:02:27]} 17. Bb2 {[%clk 0:01:44]}  d6 {[%clk 0:02:26]} 18. g3 {[%clk 0:01:42]}  f5 {[%clk 0:02:24]} 19. exf5 {[%clk 0:01:34]}  Bxf5 {[%clk 0:02:23]} 20. Bxf5 {[%clk 0:01:29]}  Rxf5 {[%clk 0:02:24]} 21. Rad1 {[%clk 0:01:29]}  d5 {[%clk 0:02:15]} 22. f4 {[%clk 0:01:24]}  Bf6 {[%clk 0:02:12]} 23. Rfe1 {[%clk 0:01:22]}  Kf7 {[%clk 0:02:06]} 24. Rd2 {[%clk 0:01:14]}  h5 {[%clk 0:02:06]} 25. Nd1 {[%clk 0:01:13]}  h4 {[%clk 0:02:02]} 26. Bxf6 {[%clk 0:01:13]}  Rxf6 {[%clk 0:02:00]} 27. Nf2 {[%clk 0:01:13]}  hxg3 {[%clk 0:01:51]} 28. hxg3 {[%clk 0:01:14]}  Ne7 {[%clk 0:01:51]} 29. Ng4 {[%clk 0:01:11]}  Rd6 {[%clk 0:01:46]} 30. Ne5+ {[%clk 0:01:09]}  Kf6 {[%clk 0:01:39]} 31. Rde2 {[%clk 0:01:09]}  Nf5 {[%clk 0:01:36]} 32. Kg2 {[%clk 0:01:08]}  Nd4 {[%clk 0:01:33]} 33. Rd2 {[%clk 0:01:07]}  c5 {[%clk 0:01:33]} 34. Ng4+ {[%clk 0:01:04]}  Kf7 {[%clk 0:01:29]} 35. Ne5+ {[%clk 0:01:03]}  Kf6 {[%clk 0:01:29]} 36. b4 {[%clk 0:01:03]}  Ne6 {[%clk 0:01:27]} 37. bxc5 {[%clk 0:01:02]}  Nxc5 {[%clk 0:01:26]} 38. Ng4+ {[%clk 0:01:01]}  Kf7 {[%clk 0:01:27]} 39. Re5 {[%clk 0:01:01]}  Rad8 {[%clk 0:01:25]} 40. Ne3 {[%clk 0:01:01]}  d4 {[%clk 0:01:22]} 41. Nf5 {[%clk 0:01:00]}  Rd5 {[%clk 0:01:21]} 42. Rde2 {[%clk 0:00:24]}  Rxe5 {[%clk 0:01:03]} 43. Rxe5 {[%clk 0:00:25]}  Ne6 {[%clk 0:01:02]} 44. Rxb5 {[%clk 0:00:23]}  Rc8 {[%clk 0:01:01]} 45. Nd6+ {[%clk 0:00:22]} 1-0


[Site "https://www.chess.com"]

[Event "Titled Tuesday Blitz January 03 Early 2023"]
[White "Hnydiuk, Aleksander"]
[Black "Blokhin, Sofia"]
[WhiteFideId "1109057"]
[BlackFideId "4508190"]
[WhiteElo "2363"]
[BlackElo "2062"]
[Result "0-1"]
[Round "10"]
[TimeControl "180+2"]
[Date "2023.01.03"]
[WhiteClock "0:00:01"]
[BlackClock "0:00:15"]

1. d4 {[%clk 0:02:35]}  Nf6 {[%clk 0:02:59]} 2. Bg5 {[%clk 0:02:21]}  g6 {[%clk 0:02:52]} 3. Nd2 {[%clk 0:02:18]}  Bg7 {[%clk 0:02:51]} 4. e4 {[%clk 0:02:17]}  d6 {[%clk 0:02:51]} 5. Be2 {[%clk 0:02:16]}  O-O {[%clk 0:02:50]} 6. h4 {[%clk 0:02:16]}  h6 {[%clk 0:02:48]} 7. Be3 {[%clk 0:02:14]}  e5 {[%clk 0:02:47]} 8. h5 {[%clk 0:02:08]}  g5 {[%clk 0:02:45]} 9. d5 {[%clk 0:02:06]}  c6 {[%clk 0:02:39]} 10. c4 {[%clk 0:02:06]}  b5 {[%clk 0:02:30]} 11. dxc6 {[%clk 0:01:54]}  bxc4 {[%clk 0:02:20]} 12. Qa4 {[%clk 0:01:47]}  c3 {[%clk 0:02:15]} 13. bxc3 {[%clk 0:01:45]}  Qc7 {[%clk 0:02:14]} 14. Bb5 {[%clk 0:01:41]}  a6 {[%clk 0:02:14]} 15. Ne2 {[%clk 0:01:29]}  Ng4 {[%clk 0:01:41]} 16. Nf1 {[%clk 0:01:17]}  Be6 {[%clk 0:01:33]} 17. f3 {[%clk 0:00:58]}  Nf6 {[%clk 0:01:26]} 18. Nfg3 {[%clk 0:00:56]}  d5 {[%clk 0:01:23]} 19. O-O {[%clk 0:00:32]}  dxe4 {[%clk 0:00:55]} 20. Bc5 {[%clk 0:00:30]}  Re8 {[%clk 0:00:47]} 21. fxe4 {[%clk 0:00:29]}  Bg4 {[%clk 0:00:30]} 22. Rf2 {[%clk 0:00:19]}  Nxh5 {[%clk 0:00:29]} 23. Nf5 {[%clk 0:00:16]}  Bxf5 {[%clk 0:00:26]} 24. Rxf5 {[%clk 0:00:17]}  Nf4 {[%clk 0:00:24]} 25. Nxf4 {[%clk 0:00:13]}  exf4 {[%clk 0:00:23]} 26. Bd4 {[%clk 0:00:07]}  Bxd4+ {[%clk 0:00:19]} 27. cxd4 {[%clk 0:00:07]}  Rxe4 {[%clk 0:00:17]} 28. Rc1 {[%clk 0:00:03]}  Qb6 {[%clk 0:00:17]} 29. Bc4 {[%clk 0:00:02]}  Qxd4+ {[%clk 0:00:16]} 30. Kh1 {[%clk 0:00:01]}  Ra7 {[%clk 0:00:15]} 31. c7 {[%clk 0:00:01]}  Rxc7 {[%clk 0:00:15]} 0-1


[Site "https://www.chess.com"]

[Event "Titled Tuesday Blitz January 03 Early 2023"]
[White "Goncalves, Davi Sulzbacher"]
[Black "Torres Dominguez, David"]
[WhiteFideId "2154510"]
[BlackFideId "2220857"]
[WhiteElo "2282"]
[BlackElo "1994"]
[Result "1-0"]
[Round "10"]
[TimeControl "180+2"]
[Date "2023.01.03"]
[WhiteClock "0:00:17"]
[BlackClock "0:00:03"]

1. Nf3 {[%clk 0:03:00]}  d5 {[%clk 0:02:59]} 2. g3 {[%clk 0:03:01]}  c6 {[%clk 0:02:58]} 3. Bg2 {[%clk 0:03:01]}  Bf5 {[%clk 0:02:56]} 4. O-O {[%clk 0:03:01]}  Nf6 {[%clk 0:02:56]} 5. b3 {[%clk 0:03:02]}  h6 {[%clk 0:02:53]} 6. Bb2 {[%clk 0:03:02]}  e6 {[%clk 0:02:53]} 7. c4 {[%clk 0:03:02]}  Be7 {[%clk 0:02:32]} 8. d3 {[%clk 0:03:02]}  O-O {[%clk 0:02:27]} 9. Nbd2 {[%clk 0:03:02]}  a5 {[%clk 0:02:23]} 10. a3 {[%clk 0:03:01]}  Qb6 {[%clk 0:02:19]} 11. Re1 {[%clk 0:02:48]}  Re8 {[%clk 0:02:13]} 12. e4 {[%clk 0:02:43]}  dxe4 {[%clk 0:02:08]} 13. dxe4 {[%clk 0:02:44]}  Bh7 {[%clk 0:02:05]} 14. Qe2 {[%clk 0:02:24]}  Na6 {[%clk 0:01:59]} 15. Rab1 {[%clk 0:02:20]}  Nd7 {[%clk 0:01:54]} 16. Nd4 {[%clk 0:02:00]}  Bxa3 {[%clk 0:01:40]} 17. Bxa3 {[%clk 0:01:51]}  Qxd4 {[%clk 0:01:40]} 18. Bb2 {[%clk 0:01:50]}  Qb6 {[%clk 0:01:33]} 19. Qg4 {[%clk 0:01:42]}  f6 {[%clk 0:01:24]} 20. e5 {[%clk 0:01:15]}  f5 {[%clk 0:01:18]} 21. Qe2 {[%clk 0:01:11]}  Nb4 {[%clk 0:01:15]} 22. Bc3 {[%clk 0:01:07]}  Nc5 {[%clk 0:01:11]} 23. Nf3 {[%clk 0:01:06]}  f4 {[%clk 0:01:07]} 24. gxf4 {[%clk 0:00:58]}  Bxb1 {[%clk 0:00:59]} 25. Rxb1 {[%clk 0:00:59]}  Qc7 {[%clk 0:00:56]} 26. Bd4 {[%clk 0:00:46]}  b5 {[%clk 0:00:48]} 27. Bxc5 {[%clk 0:00:46]}  Qf7 {[%clk 0:00:36]} 28. Be3 {[%clk 0:00:41]}  bxc4 {[%clk 0:00:30]} 29. Qxc4 {[%clk 0:00:40]}  Qg6 {[%clk 0:00:28]} 30. Rd1 {[%clk 0:00:33]}  Nd5 {[%clk 0:00:23]} 31. Nd4 {[%clk 0:00:20]}  Qg4 {[%clk 0:00:16]} 32. Qe2 {[%clk 0:00:17]}  Qxe2 {[%clk 0:00:12]} 33. Nxe2 {[%clk 0:00:18]}  a4 {[%clk 0:00:09]} 34. bxa4 {[%clk 0:00:18]}  Rxa4 {[%clk 0:00:08]} 35. Rc1 {[%clk 0:00:19]}  g5 {[%clk 0:00:03]} 36. fxg5 {[%clk 0:00:18]}  hxg5 {[%clk 0:00:03]} 37. Rxc6 {[%clk 0:00:17]} 1-0


[Site "https://www.chess.com"]